bitfinex/quotes_ETHUSD_20220212
["timestamp","ask_amount","ask_price","bid_price","bid_amount"]
[1644704327232,0.6243985,2895.9,2895.1,0.02926632]
[1644704327433,0.0095033,2895.5,2895.1,0.02926632]
[1644704328234,0.6243985,2895.8,2895.1,0.02926632]
[1644704328435,0.00366262,2895.7,2895.1,0.02926632]
[1644704328635,0.00950335,2895.4,2895.1,0.02926632]
[1644704329432,0.00366262,2895.7,2895.1,0.02926632]
[1644704329634,0.00950324,2895.4,2895.1,0.02926632]
[1644704330133,0.00950324,2895.4,2895.1,0.20186632]
[1644704330583,0.00366262,2896.1,2895.1,0.1726]
[1644704331079,0.00366262,2896.1,2895.1,0.6736]
[1644704331080,0.00950324,2895.4,2895.1,0.6736]
[1644704331886,0.00366262,2896.1,2895.1,0.6736]
[1644704332084,0.00955577,2895.4,2895.3,0.86317]
[1644704332686,0.00955577,2895.4,2895.3,1.16317]
[1644704333087,0.00366262,2896.0,2895.3,1.16317]
[1644704333285,0.00955583,2895.5,2895.3,1.16317]
[1644704333986,0.00955583,2895.5,2895.3,2.02634]
[1644704334224,0.15,2896.1,2895.3,2.02634]
[1644704334225,0.11321845,2896.1,2895.3,2.02634]
[1644704334428,0.11321845,2896.1,2895.4,0.1726]
[1644704334626,0.00955577,2895.5,2895.4,0.6736]
[1644704335026,0.00955577,2895.5,2895.4,1.6736]
[1644704335427,0.11321845,2896.1,2895.4,1.6736]
[1644704335627,1.46935559,2896.0,2895.4,1.6236]
[1644704336229,1.46935559,2896.0,2895.4,1.9236]
[1644704336430,0.11321845,2896.1,2895.4,1.9236]
[1644704336629,1.46935342,2896.0,2895.4,1.9236]
[1644704337033,0.11321845,2896.1,2895.4,1.9236]
[1644704337233,1.46938049,2896.0,2895.4,1.9236]
[1644704337533,0.11321845,2896.1,2895.4,1.9236]
[1644704338174,1.46934591,2896.0,2895.4,1.9236]
[1644704338979,1.46934591,2896.0,2895.4,1.6236]
[1644704339382,0.01018292,2895.8,2895.4,1.6236]
[1644704339678,0.01018292,2895.8,2895.4,1.9236]
[1644704340176,0.11321845,2896.1,2895.4,1.9236]
[1644704340377,0.11321845,2896.1,2895.6,1.30442306]
[1644704340576,0.11321845,2896.1,2895.8,0.86301]
[1644704340577,0.00366434,2896.0,2895.8,0.86301]
[1644704340777,0.00366434,2896.0,2895.8,1.16301]
[1644704340977,0.11321845,2896.1,2895.9,0.501]
[1644704341176,0.11321845,2896.1,2895.9,0.93919997]
[1644704341375,0.11321845,2896.1,2895.9,1.11129126]
[1644704341841,0.12340104,2896.1,2896.0,0.1726]
[1644704342039,0.12340104,2896.1,2896.0,0.6736]
[1644704342238,0.12340104,2896.1,2896.0,0.9736]
[1644704342437,0.12340104,2896.1,2896.0,1.9776]
[1644704342638,0.11321845,2896.1,2896.0,1.9776]
[1644704342838,0.11321845,2896.1,2896.0,0.004]
[1644704344244,0.02101943,2896.1,2896.0,0.004]
[1644704344641,0.02101943,2896.1,2896.0,0.505]
[1644704345679,1.943e-05,2896.1,2896.0,0.67709129]
[1644704345979,0.01018253,2896.2,2896.0,21.79993129]
[1644704346182,0.00366434,2897.1,2896.2,0.86286]
[1644704346379,0.00366434,2897.2,2896.3,0.6736]
[1644704346579,0.04072403,2896.6,2896.3,1.14569129]
[1644704346786,0.04072403,2896.6,2896.3,2.14569129]
[1644704347084,0.04072403,2896.6,2896.4,0.17209129]
[1644704347288,0.04072403,2896.6,2896.5,0.501]
[1644704347484,0.00366434,2897.3,2896.5,0.501]
[1644704347682,0.00366434,2897.3,2896.5,0.801]
[1644704347683,0.00700701,2896.6,2896.5,0.801]
[1644704348084,0.00700701,2896.6,2896.5,0.501]
[1644704348684,3.5,2897.4,2896.5,0.501]
[1644704348883,0.00700701,2896.7,2896.5,0.501]
[1644704349339,0.00700701,2896.7,2896.5,0.801]
[1644704349535,0.00700701,2896.7,2896.5,1.101]
[1644704349932,0.00366434,2897.3,2896.5,1.101]
[1644704350434,1.47260845,2897.5,2896.6,1.72559]
[1644704350632,1.46894411,2897.4,2896.7,0.501]
[1644704350835,1.47260845,2897.3,2896.7,0.501]
[1644704351033,1.46894411,2897.2,2896.7,0.501]
[1644704351236,1.46894411,2897.1,2896.8,0.71236242]
[1644704351436,1.46894411,2897.1,2896.8,1.64471242]
[1644704351734,1.46894411,2897.1,2896.8,2.24471242]
[1644704351940,1.46894411,2897.1,2896.8,3.24471242]
[1644704352139,1.46894411,2897.1,2896.8,2.53235]
[1644704352339,1.61894411,2897.1,2896.9,1.0]
[1644704352540,0.16017391,2897.1,2897.0,1.72525]
[1644704353480,0.15,2897.1,2897.0,1.72525]
[1644704355281,1.61881433,2897.1,2897.0,1.72525]
[1644704355782,0.15,2897.1,2897.0,1.72525]
[1644704357037,0.15,2897.1,2897.0,2.32525]
[1644704357830,0.15,2897.1,2897.0,2.32925]
[1644704358031,0.1,2897.1,2897.0,2.32925]
[1644704358431,0.0001,2897.1,2897.0,2.32925]
[1644704359434,0.0001,2897.1,2897.0,3.47775]
[1644704359935,0.0001,2897.1,2897.0,4.47775]
[1644704360235,0.0001,2897.1,2897.0,4.97875]
[1644704361079,0.0001,2897.1,2897.0,5.15115]
[1644704361885,0.05366434,2898.1,2897.0,5.15115]
[1644704362091,0.01017858,2897.2,2897.1,1.0]
[1644704362288,0.06474504,2898.3,2897.1,1.0]
[1644704362289,0.00367612,2898.2,2897.2,0.1724]
[1644704362485,0.00367612,2897.9,2897.3,6.759]
[1644704362687,0.04035807,2897.9,2897.4,20.26]
[1644704362883,0.04035807,2897.9,2897.5,0.501]
[1644704363086,0.04035807,2897.9,2897.5,3.2636]
[1644704363285,0.04035807,2897.9,2897.6,1.0]
[1644704363484,0.04035807,2897.9,2897.7,1.36338]
[1644704364085,5.807e-05,2897.9,2897.7,1.36338]
[1644704364540,0.12245807,2898.8,2897.7,0.501]
[1644704364745,2.39963727,2898.8,2897.7,0.501]
[1644704364942,1.46833809,2898.7,2897.7,0.501]
[1644704365141,0.1724,2898.6,2897.7,0.501]
[1644704365443,0.0354487,2898.0,2897.7,0.501]
[1644704365840,0.0354487,2898.0,2897.7,0.801]
[1644704366241,0.0354487,2898.0,2897.7,1.101]
[1644704366947,0.04564792,2898.0,2897.7,1.101]
[1644704367992,0.0354487,2898.0,2897.7,1.105]
[1644704368281,0.04564792,2898.0,2897.7,1.105]
[1644704368980,0.0354487,2898.0,2897.7,1.79327066]
[1644704369380,0.04564792,2898.0,2897.7,2.79327066]
[1644704369581,0.04564792,2898.0,2897.8,0.86239]
[1644704369782,0.04564792,2898.0,2897.9,0.501]
[1644704370187,1.50384298,2898.0,2897.9,4.65798954]
[1644704370384,0.66327235,2899.3,2897.9,5.87088776]
[1644704370584,1.20300462,2899.2,2898.0,2.93336]
[1644704370784,3.3064,2899.5,2898.4,0.8623]
[1644704370987,3.3064,2899.5,2898.4,1.3633]
[1644704371186,3.134,2899.5,2898.4,1.6633]
[1644704371386,3.134,2899.5,2898.4,1.9633]
[1644704371587,3.134,2899.5,2898.4,1.3633]
[1644704371833,0.85841849,2899.4,2898.4,2.5858]
[1644704372035,0.64741993,2899.2,2898.4,2.5858]
[1644704372232,3.134,2899.5,2898.5,1.0]
[1644704372233,0.64741993,2899.3,2898.5,1.0]
[1644704372433,0.39741993,2899.3,2898.5,1.0]
[1644704373133,3.134,2899.5,2898.5,1.0]
[1644704373336,2.984,2899.5,2898.5,1.0]
[1644704373534,3.66567036,2899.5,2898.5,1.86223]
[1644704373735,3.7974548,2899.5,2898.5,1.86223]
[1644704374435,0.8634548,2899.4,2898.5,1.86223]
[1644704374635,3.7974548,2899.5,2898.5,1.86223]
[1644704374840,3.7974548,2899.5,2898.6,0.6]
[1644704375040,2.934,2899.5,2898.6,1.101]
[1644704375484,0.01020065,2899.1,2898.8,0.86218]
[1644704376282,1.59518734,2899.9,2898.8,0.86218]
[1644704376483,0.0102007,2899.1,2898.8,0.86218]
[1644704376886,0.0102007,2899.1,2898.8,1.46218]
[1644704377586,0.00368767,2899.8,2898.8,1.46218]
[1644704377787,0.00368767,2899.8,2898.8,2.66918]
[1644704377788,0.0102007,2899.1,2898.8,2.66918]
[1644704378187,0.0102007,2899.1,2898.9,1.0]
[1644704378586,0.00368767,2899.6,2898.9,1.0]
[1644704378987,0.01020065,2899.1,2898.9,1.0]
[1644704379632,0.01020065,2899.1,2898.9,4.77469079]
[1644704379833,0.17608767,2899.8,2898.9,1.501]
[1644704380333,0.17608767,2899.8,2899.0,0.03084673]
[1644704380334,0.00964136,2899.1,2899.0,0.03084673]
[1644704381134,0.00368767,2899.8,2899.0,0.03084673]
[1644704381334,0.00964131,2899.2,2899.0,0.03084673]
[1644704382139,0.00964131,2899.2,2899.1,0.1724]
[1644704382340,0.00368767,2899.5,2899.1,1.20050587]
[1644704382541,0.00964127,2899.2,2899.1,1.20050587]
[1644704382985,0.00964127,2899.2,2898.9,1.16672271]
[1644704383187,0.00964127,2899.2,2899.1,0.1724]
[1644704383584,0.03855929,2899.7,2899.1,0.1724]
[1644704383585,0.00368767,2899.8,2899.1,0.1724]
[1644704383784,0.00693189,2899.2,2899.1,0.1724]
[1644704384583,0.00368767,2899.8,2899.1,0.1724]
[1644704384882,0.00693189,2899.3,2899.1,0.1724]
[1644704385685,0.00693189,2899.3,2899.0,0.03090911]
[1644704385686,0.00693189,2899.3,2899.0,0.20330911]
[1644704385985,0.00368767,2899.8,2899.0,0.20330911]
[1644704386183,0.00693189,2899.3,2899.0,0.20330911]
[1644704386383,0.00693189,2899.3,2899.0,0.50330911]
[1644704386583,0.00693189,2899.3,2899.0,0.80330911]
[1644704386835,0.00693189,2899.3,2899.0,0.20330911]
[1644704387038,0.00368767,2899.8,2899.0,0.20330911]
[1644704387438,0.01020697,2899.3,2899.0,0.20330911]
[1644704387741,0.01020697,2899.3,2899.0,0.80330911]
[1644704388440,0.00368767,2899.8,2899.2,0.86205]
[1644704388638,0.01020697,2899.3,2899.2,1.16205]
[1644704388838,0.04082175,2899.7,2899.3,6.258]
[1644704389037,1.0,2900.0,2899.4,0.501]
[1644704389239,0.00369363,2899.9,2899.4,1.501]
[1644704389439,0.00369363,2899.9,2899.4,0.501]
[1644704390039,0.91893661,2900.0,2899.4,0.501]
[1644704390686,1.46744646,2899.9,2899.4,0.501]
[1644704390887,0.91893661,2900.0,2899.4,0.501]
[1644704391090,0.0068916,2899.8,2899.4,0.501]
[1644704391986,0.91893661,2900.0,2899.4,0.501]
[1644704392187,0.0102085,2899.8,2899.6,0.86205]
[1644704392988,0.0102085,2899.8,2899.6,1.16205]
[1644704393287,0.01020873,2899.8,2899.6,1.37325976]
[1644704393488,0.01020873,2899.8,2899.6,2.23515976]
[1644704393888,0.01020873,2899.8,2899.6,0.51120976]
[1644704394090,0.01020873,2899.8,2899.6,0.01020976]
[1644704394337,0.91893661,2900.0,2899.7,0.501]
[1644704394536,0.91893661,2900.0,2899.8,0.501]
[1644704394935,0.91893661,2900.0,2899.8,1.36281]
[1644704395335,0.91893661,2900.0,2899.8,0.501]
[1644704395737,0.92914512,2900.0,2899.8,0.501]
[1644704396536,0.92914512,2900.0,2899.8,4.24953359]
[1644704396737,1.2096,2900.5,2899.8,4.31811195]
[1644704396940,0.01001711,2900.0,2899.9,2.896]
[1644704397141,0.01001711,2900.0,2899.9,7.20338801]
[1644704397339,0.01001711,2900.0,2899.9,3.2246]
[1644704398002,1.1294,2900.9,2899.9,7.20506874]
[1644704398385,1.1294,2900.9,2899.9,3.2246]
[1644704399390,0.00688921,2900.5,2899.9,3.2246]
[1644704399589,0.00688921,2900.5,2899.9,6.95288806]
[1644704399789,0.00688921,2900.5,2900.0,1.0]
[1644704399992,0.00688921,2900.5,2900.1,4.868197]
[1644704400192,0.00688921,2900.5,2900.3,6.258]
[1644704400392,3.2612,2901.6,2900.4,0.501]
[1644704400589,3.2612,2901.6,2900.5,3.69028822]
[1644704400590,1.46668879,2901.5,2900.5,3.69028822]
[1644704400790,0.04082606,2900.9,2900.4,1.1723]
[1644704400990,0.04082606,2900.9,2900.5,0.501]
[1644704401597,0.83292954,2901.5,2900.5,0.501]
[1644704401838,0.01020759,2900.8,2900.5,0.351]
[1644704402938,0.1723,2901.5,2900.5,0.351]
[1644704403140,0.70199999,2900.3,2900.0,4.1834]
[1644704403341,0.70199999,2900.3,2900.1,0.501]
[1644704403541,0.70199999,2900.3,2900.1,1.501]
[1644704403840,0.70199999,2900.3,2900.1,0.501]
[1644704404246,0.71220815,2900.3,2900.1,0.501]
[1644704404641,0.71220815,2900.3,2900.0,0.8618]
[1644704405041,0.71220815,2900.3,2899.7,7.36644041]
[1644704405241,0.71220815,2900.3,2899.7,7.35623]
[1644704405242,0.00370363,2900.2,2899.7,7.35623]
[1644704405495,0.00370363,2900.2,2899.7,7.3664403]
[1644704405687,0.00370363,2900.2,2899.7,8.2282503]
[1644704406389,0.00370363,2900.2,2899.7,7.35623]
[1644704406590,0.00370363,2900.2,2899.6,0.86181]
[1644704406798,1.50753848,2900.3,2899.7,0.01020982]
[1644704406993,0.00370593,2900.2,2899.7,0.01020982]
[1644704407694,0.00370593,2900.2,2899.3,0.1724]
[1644704407897,1.47094248,2900.2,2899.3,0.1724]
[1644704409094,1.47094248,2900.2,2899.6,0.00333511]
[1644704409944,1.47094248,2900.2,2899.3,0.1724]
[1644704410344,1.47094248,2900.2,2899.8,0.00333494]
[1644704411141,1.47094248,2900.2,2899.7,0.004]
[1644704411343,0.68397349,2900.1,2899.7,0.004]
[1644704411541,0.68397349,2900.1,2899.9,0.01020941]
[1644704411741,1.46726377,2900.0,2899.9,0.01020941]
[1644704411950,1.93966377,2900.0,2899.9,0.01020941]
[1644704412344,1.93966377,2900.0,2899.7,0.004]
[1644704412545,1.46726377,2899.9,2899.7,0.004]
[1644704412747,1.46726377,2899.9,2899.8,0.01020947]
[1644704413683,1.46726377,2899.9,2899.8,0.004]
[1644704413884,1.76726377,2899.9,2899.8,0.004]
[1644704414083,1.46726377,2899.9,2899.8,0.004]
[1644704414684,1.46726377,2900.0,2899.8,0.004]
[1644704414885,1.46726377,2899.9,2899.8,0.004]
[1644704415284,0.3,2899.9,2899.8,0.004]
[1644704415485,1.63966377,2899.9,2899.8,0.004]
[1644704415686,1.63966377,2899.9,2899.8,0.03000299]
[1644704416186,1.46726377,2899.9,2899.8,0.03000299]
[1644704418242,1.46726377,2899.9,2899.8,2.99e-06]
[1644704418442,1.46726377,2899.9,2898.6,0.1724]
[1644704418443,7.06726377,2899.9,2898.6,0.1724]
[1644704418643,1.4709697,2899.8,2898.5,0.4224]
[1644704418843,1.4709697,2899.8,2898.5,0.25]
[1644704419042,1.4709697,2899.8,2898.6,0.1724]
[1644704419243,0.66108917,2899.2,2898.6,0.1724]
[1644704419649,0.66108917,2899.2,2898.2,0.18017208]
[1644704419650,0.66108917,2899.2,2898.4,0.1724]
[1644704419845,0.66108917,2899.2,2898.4,1.03477]
[1644704420484,1.46765015,2899.1,2898.4,0.1724]
[1644704420684,0.66108917,2899.2,2898.4,0.1724]
[1644704420883,0.66108917,2899.2,2898.3,0.1724]
[1644704421085,1.46767996,2899.1,2898.3,0.1724]
[1644704421282,0.66108917,2899.2,2898.7,0.01020632]
[1644704421988,0.66108917,2899.2,2898.3,0.1724]
[1644704422191,0.66108917,2899.2,2898.8,0.01020615]
[1644704422389,0.6734,2899.5,2898.8,0.01020615]
[1644704422590,1.46763185,2899.4,2898.8,0.01020615]
[1644704422990,5.04771459,2899.4,2898.8,0.01020615]
[1644704423189,0.0204123,2898.7,2898.2,0.1724]
[1644704423388,0.0204123,2898.7,2898.1,0.18021598]
[1644704423588,0.0204123,2898.7,2898.2,0.1724]
[1644704424838,0.0204123,2898.7,2898.3,1.72512]
[1644704425438,0.0204123,2898.7,2898.5,0.02294702]
[1644704426843,0.6806131,2898.7,2898.5,0.02294702]
[1644704427044,0.6806131,2898.7,2898.5,0.033149]
[1644704428001,0.0204123,2898.7,2898.5,0.02294702]
[1644704428194,0.0204123,2898.7,2898.5,0.033149]
[1644704428393,0.0204123,2898.7,2898.6,0.1724]
[1644704431943,0.0204123,2898.7,2898.5,0.03314179]
[1644704432746,0.0204123,2898.7,2898.5,0.02294702]
[1644704433145,0.87347913,2898.7,2898.6,0.8623]
[1644704433344,3.74412983,2899.5,2898.6,0.8623]
[1644704433544,1.64004375,2899.4,2898.6,0.8623]
[1644704433744,0.01019083,2899.6,2898.6,0.8623]
[1644704433946,1.46749458,2899.5,2898.6,2.0458]
[1644704434147,1.1996,2899.7,2898.6,2.0458]
[1644704434345,1.1996,2899.7,2898.7,0.43446951]
[1644704434346,0.66286907,2899.0,2898.7,0.43446951]
[1644704434846,1.1996,2899.7,2898.7,1.29672951]
[1644704435052,1.46744599,2899.6,2899.0,0.86227]
[1644704435249,0.1724,2899.8,2899.0,0.86227]
[1644704435492,0.501,2900.0,2899.0,0.86227]
[1644704435493,1.46742278,2899.7,2899.0,0.86227]
[1644704435685,0.501,2900.0,2899.0,0.86227]
[1644704435885,1.46737109,2899.9,2899.0,0.86227]
[1644704436085,0.72969445,2899.3,2899.0,0.86227]
[1644704436287,3.67610593,2900.1,2899.0,0.86227]
[1644704436485,1.46732336,2900.0,2899.0,2.02837]
[1644704436690,0.0101846,2899.6,2899.1,0.86225]
[1644704437292,0.72028204,2899.6,2899.1,0.86225]
[1644704437689,0.71009744,2899.6,2899.1,0.86225]
[1644704437893,0.71971794,2899.6,2899.1,0.86225]
[1644704438891,0.71009744,2899.6,2899.1,1.03465]
[1644704439093,0.71639951,2899.6,2899.1,1.03465]
[1644704439942,0.71009744,2899.6,2899.1,1.03465]
[1644704440243,0.71639951,2899.6,2899.1,1.03465]
[1644704441042,0.71639951,2899.6,2899.3,0.02070784]
[1644704441243,0.71009744,2899.6,2899.4,0.86211]
[1644704441444,0.71009744,2899.6,2899.4,1.72421]
[1644704441445,0.71971307,2899.6,2899.4,1.72421]
[1644704442345,0.71009744,2899.6,2899.4,1.72421]
[1644704442647,0.71985656,2899.6,2899.4,1.72421]
[1644704443588,0.71009744,2899.6,2899.4,1.72421]
[1644704443789,0.71985656,2899.6,2899.4,1.72421]
[1644704444791,0.71009744,2899.6,2899.4,1.72421]
[1644704444991,0.71985656,2899.6,2899.4,1.72421]
[1644704445992,0.71009744,2899.6,2899.4,1.72421]
[1644704446194,0.71009744,2899.6,2899.5,0.02614565]
[1644704446394,0.71963027,2899.6,2899.5,0.02614565]
[1644704447237,0.71009744,2899.6,2899.5,0.02614565]
[1644704448042,0.00953277,2899.7,2899.5,0.02614565]
[1644704448244,0.00953277,2899.7,2899.5,0.88822565]
[1644704448441,0.66961782,2900.3,2899.5,0.88822565]
[1644704448642,1.46713963,2900.2,2899.8,0.86201]
[1644704448841,1.50526476,2900.2,2899.8,0.86201]
[1644704449041,1.46713963,2900.1,2899.8,0.86201]
[1644704449240,2.13064779,2900.1,2899.8,0.86201]
[1644704449443,0.66350816,2900.1,2899.8,0.86201]
[1644704449843,0.66350816,2900.1,2899.9,0.862]
[1644704450042,0.67287687,2900.1,2899.9,0.862]
[1644704450794,0.66350816,2900.1,2899.9,0.862]
[1644704451192,0.66350816,2900.1,2899.8,0.86201]
[1644704451193,1.46714164,2900.0,2899.8,0.86201]
[1644704451392,0.67287682,2900.1,2899.8,0.86201]
[1644704452091,0.66350816,2900.1,2899.8,0.86201]
[1644704452291,0.67287687,2900.1,2899.8,0.86201]
[1644704452692,0.67287687,2900.1,2899.9,0.86199]
[1644704453296,0.66350816,2900.1,2899.9,0.86199]
[1644704453494,0.67253125,2900.1,2899.9,0.86199]
[1644704454095,0.62253125,2900.1,2899.9,0.86199]
[1644704454335,0.61350816,2900.1,2899.9,0.86199]
[1644704454736,0.62253125,2900.1,2899.9,0.86199]
[1644704455538,0.61350816,2900.1,2899.9,0.86199]
[1644704455739,0.61350816,2900.1,2899.9,0.8888141]
[1644704455942,0.62253125,2900.1,2899.9,0.8888141]
[1644704456741,0.61350816,2900.1,2899.9,0.8888141]
[1644704457240,0.62260083,2900.1,2899.9,0.8888141]
[1644704458098,0.66591189,2900.3,2899.9,0.8888141]
[1644704458298,0.03636523,2900.6,2899.9,0.8888141]
[1644704458503,0.03636523,2900.6,2900.3,0.86183]
[1644704458697,0.03636523,2900.6,2900.4,0.86179]
[1644704459098,0.78147415,2900.6,2900.4,0.86179]
[1644704459297,0.74510892,2900.6,2900.4,0.86179]
[1644704459498,0.74510892,2900.6,2900.3,2.5854]
[1644704459499,1.46687513,2900.5,2900.3,1.72357]
[1644704459703,1.46687513,2900.5,2899.9,0.0268241]
[1644704459704,1.46687513,2900.5,2900.1,1.72386]
[1644704460297,1.46687513,2900.5,2899.9,0.0268241]
[1644704460501,1.63927513,2900.5,2899.9,0.0268241]
[1644704460698,1.47596731,2900.4,2899.9,0.8888041]
[1644704460900,1.46687513,2900.3,2899.9,0.8888041]
[1644704461107,0.00909218,2900.4,2899.9,0.8888041]
[1644704461732,1.68101485,2900.6,2899.9,0.8888041]
[1644704461936,0.00626473,2900.3,2899.9,0.8888041]
[1644704462535,0.75790324,2900.0,2899.9,0.8888041]
[1644704462737,0.75790324,2900.0,2899.9,0.0268241]
[1644704462936,3.61313319,2900.5,2899.9,0.0268241]
[1644704463136,0.0062644,2900.2,2899.9,0.0268241]
[1644704463743,5.0062644,2900.2,2899.9,0.0268241]
[1644704463940,1.46707591,2900.1,2899.9,0.0268241]
[1644704464739,2.14210794,2900.1,2899.9,0.0268241]
[1644704464940,0.72503203,2900.1,2899.9,0.0268241]
[1644704465591,0.72503203,2900.1,2899.5,0.02235034]
[1644704465794,0.79501178,2899.6,2899.5,0.02235034]
[1644704466793,0.79501178,2899.6,2899.3,0.00952544]
[1644704466995,0.501,2899.5,2899.3,0.00952544]
[1644704467794,0.501,2899.5,2898.1,1.72479]
[1644704467995,1.65211178,2899.6,2898.1,1.72479]
[1644704467996,0.85107292,2898.7,2898.5,0.86232]
[1644704468194,0.8571,2899.6,2898.6,0.1724]
[1644704468595,0.8571,2899.6,2898.3,1.72457]
[1644704468796,0.8571,2899.6,2898.4,0.1724]
[1644704468999,0.8571,2899.6,2898.6,0.86231]
[1644704469238,0.8571,2899.6,2898.8,0.00954109]
[1644704469239,0.89609183,2899.1,2898.8,0.00954109]
[1644704469644,0.8571,2899.6,2898.8,0.00954109]
[1644704470044,0.8571,2899.6,2898.7,1.03469]
[1644704470245,0.8571,2899.6,2899.4,0.02111471]
[1644704470844,1.69756438,2899.6,2899.4,0.02111471]
[1644704473791,3.59755991,2899.5,2898.4,1.72473]
[1644704473992,4.27095991,2899.5,2899.3,0.00955695]
[1644704474194,3.58576037,2899.4,2899.3,0.00955695]
[1644704474491,0.1724,2899.4,2899.3,0.00955695]
[1644704474891,0.1724,2899.4,2898.4,0.86238]
[1644704475095,0.87506518,2898.6,2898.4,0.86238]
[1644704475291,1.367,2899.4,2898.4,0.86238]
[1644704475493,0.1724,2899.4,2898.4,0.86238]
[1644704475694,0.1724,2899.4,2898.1,1.72479]
[1644704476093,0.1724,2899.4,2898.0,0.25]
[1644704476493,0.1724,2899.4,2898.1,0.1724]
[1644704477139,0.80048285,2898.5,2898.1,0.1724]
[1644704477339,0.80048285,2898.5,2897.9,0.1724]
[1644704477941,0.80048285,2898.5,2898.1,0.86245]
[1644704479940,0.80048285,2898.5,2898.2,0.00975265]
[1644704480586,0.80048285,2898.5,2898.2,0.03425254]
[1644704480988,0.80048285,2898.5,2898.2,0.02449989]
[1644704481186,0.80048285,2898.5,2898.2,0.03425249]
[1644704482190,0.80048285,2898.5,2898.2,0.02449989]
[1644704482392,0.80048285,2898.5,2898.2,0.03425249]
[1644704483393,0.80048285,2898.5,2898.2,0.02449989]
[1644704483592,0.80048285,2898.5,2898.2,0.03402191]
[1644704484636,0.80048285,2898.5,2898.2,0.02449989]
[1644704484835,0.80048285,2898.5,2898.2,0.03402191]
[1644704485636,1.10048285,2898.5,2898.2,0.03402191]
[1644704485836,1.10048285,2898.5,2898.2,0.02449989]
[1644704486236,1.10048285,2898.5,2898.2,0.03402191]
[1644704487039,1.10048285,2898.5,2898.2,0.02449989]
[1644704487243,1.10048285,2898.5,2898.2,0.03403733]
[1644704487441,1.46795611,2898.4,2898.2,0.03403733]
[1644704488085,0.3,2898.4,2898.2,0.03403733]
[1644704488286,1.40048285,2898.5,2898.2,0.02449989]
[1644704488587,1.10048285,2898.5,2898.2,0.03403738]
[1644704489387,1.10048285,2898.5,2898.2,0.02449989]
[1644704489587,1.10048285,2898.5,2898.2,0.03403733]
[1644704489788,1.40048285,2898.5,2898.2,0.03403733]
[1644704490590,1.40048285,2898.5,2898.2,0.02449989]
[1644704490788,1.40048285,2898.5,2898.2,0.0340363]
[1644704491841,1.40048285,2898.5,2898.2,0.02449989]
[1644704492040,0.04899978,2898.1,2897.6,0.13819997]
[1644704493242,0.04899978,2898.1,2897.7,0.00332297]
[1644704494242,0.63821496,2898.0,2897.6,0.13819997]
[1644704494443,0.63821496,2898.0,2897.8,0.00954425]
[1644704495341,0.63821496,2898.0,2897.6,0.13819997]
[1644704495585,0.63821496,2898.0,2897.8,0.00954425]
[1644704496687,0.63821496,2898.0,2897.6,0.02419725]
[1644704496892,0.63821496,2898.0,2897.8,0.00954425]
[1644704497695,0.63821496,2898.0,2897.6,0.02419725]
[1644704498191,0.63821496,2898.0,2897.8,0.00954389]
[1644704498991,0.63821496,2898.0,2897.6,0.02419725]
[1644704499241,0.63821496,2898.0,2897.8,0.00954389]
[1644704499842,0.93821496,2898.0,2897.8,0.00954389]
[1644704500143,1.23821496,2898.0,2897.6,0.02419725]
[1644704500346,0.63821496,2898.0,2897.6,0.02419725]
[1644704500643,0.63821496,2898.0,2897.8,0.00954389]
[1644704500842,0.63821496,2898.0,2897.9,0.01668888]
[1644704503893,0.13821496,2898.0,2897.9,0.01668888]
[1644704504594,1.60634211,2898.0,2897.9,0.01668888]
[1644704506093,1.60634211,2898.0,2897.9,0.02086111]
[1644704506734,2.60634211,2898.0,2897.9,0.02086111]
[1644704509841,2.77874211,2898.0,2897.9,0.02086111]
[1644704510041,3.27974211,2898.0,2897.9,0.02086111]
[1644704512092,0.06209015,2897.4,2897.0,0.04074744]
[1644704512292,0.06209015,2897.4,2896.6,7.455]
[1644704512495,0.06209015,2897.4,2896.2,3.3809291]
[1644704512693,0.06209015,2897.4,2896.2,4.56]
[1644704513092,0.77062205,2896.8,2896.2,4.56]
[1644704513295,0.77062205,2896.8,2896.2,4.31]
[1644704513493,0.06209015,2897.4,2896.2,1.1919]
[1644704513692,0.06209015,2897.4,2896.7,0.01018041]
[1644704514540,0.06209015,2897.4,2896.2,1.1919]
[1644704514739,1.07799015,2897.4,2896.2,1.1919]
[1644704514940,1.46843764,2897.3,2896.9,0.01018012]
[1644704515147,1.76843764,2897.3,2896.9,0.01018012]
[1644704515345,1.46843764,2897.2,2896.9,0.01018012]
[1644704515544,0.31548655,2897.3,2896.9,0.01018012]
[1644704515744,1.0,2897.2,2896.5,0.0407266]
[1644704515945,0.3,2897.2,2896.2,0.1724]
[1644704516146,0.63715519,2896.3,2896.2,0.1724]
[1644704517349,0.63715519,2896.3,2896.0,40.0]
[1644704518394,0.63715519,2896.3,2896.0,40.01017628]
[1644704519395,0.63715519,2896.3,2896.0,40.0]
[1644704519796,0.93715519,2896.3,2896.0,40.01017628]
[1644704520396,1.93715519,2896.3,2896.0,40.01017628]
[1644704520596,1.93715519,2896.3,2896.0,40.0]
[1644704520597,1.96892574,2896.3,2896.0,40.0]
[1644704520899,1.46894031,2896.2,2896.0,40.01017628]
[1644704521753,3.87508347,2896.1,2896.0,40.0]
[1644704521957,2.16934031,2896.1,2896.0,40.0]
[1644704522156,2.16934031,2896.1,2896.0,20.10988643]
[1644704522157,3.04194031,2896.1,2896.0,20.10988643]
[1644704522358,3.84294031,2896.1,2896.0,20.10988643]
[1644704522561,4.03066825,2896.1,2896.0,20.10988643]
[1644704522956,3.85806825,2896.1,2896.0,20.09971009]
[1644704523157,7.25806825,2896.1,2896.0,20.09971009]
[1644704523362,7.43066825,2896.1,2896.0,20.09971009]
[1644704523964,11.00091472,2896.1,2896.0,20.09971009]
[1644704525504,11.00091472,2896.1,2896.0,19.10040841]
[1644704525691,11.02014227,2896.1,2896.0,19.10040841]
[1644704526496,11.02014227,2896.1,2896.0,2.92194583]
[1644704526698,11.02014227,2896.1,2895.1,0.15]
[1644704526700,0.18772794,2895.8,2895.1,0.15]
[1644704526897,0.18772794,2895.5,2895.1,0.15]
[1644704527096,0.501,2895.4,2895.1,0.15]
[1644704527296,4.17444711,2895.3,2895.1,0.15]
[1644704527496,4.47184446,2895.2,2895.1,0.15]
[1644704527697,5.47184446,2895.2,2895.1,0.15]
[1644704527896,5.77184446,2895.2,2895.1,0.15]
[1644704528497,10.77184446,2895.2,2895.1,0.15]